bitfinex/quotes_ETHUSD_20251218
["timestamp","ask_amount","ask_price","bid_price","bid_amount"]
[1766057239086,7.68375226,2856.2,2855.7,1.3178]
[1766057239288,0.78397356,2856.1,2855.8,2.3056]
[1766057239509,0.78397356,2856.1,2855.8,1.3178]
[1766057239704,0.78397356,2856.1,2855.8,2.3056]
[1766057240207,1.83057356,2856.1,2855.8,1.3178]
[1766057240807,0.0012,2856.2,2855.9,2.3056]
[1766057241009,0.0012,2856.2,2855.6,1.3178]
[1766057241188,1.0478,2856.2,2855.8,1.3178]
[1766057241504,1.0478,2856.2,2855.7,0.9878]
[1766057241505,0.0012,2856.2,2856.0,0.9878]
[1766057241706,0.0012,2856.2,2856.1,1.3178]
[1766057241908,0.0012,2856.2,2856.1,2.3056]
[1766057248183,0.0012,2856.2,2856.1,1.3178]
[1766057248587,0.0012,2856.2,2856.0,1.3178]
[1766057248815,1.0466,2856.0,2855.9,0.001]
[1766057249014,1.0466,2856.0,2855.7,0.553]
[1766057249222,0.8668,2855.7,2855.5,0.001]
[1766057249517,0.8668,2855.9,2855.5,0.001]
[1766057249719,1.0466,2855.8,2855.5,0.001]
[1766057250090,1.9105,2855.7,2855.5,0.001]
[1766057250503,1.0466,2855.7,2855.5,0.001]
[1766057251189,1.0458,2855.7,2855.5,0.001]
[1766057251729,0.8639,2855.9,2855.5,0.001]
[1766057253327,1.0466,2855.8,2855.5,0.001]
[1766057254125,0.0012,2856.2,2855.5,1.62498526]
[1766057254422,0.0012,2856.2,2855.9,1.3178]
[1766057254631,1.0478,2856.2,2855.9,1.3178]
[1766057255412,1.0478,2856.2,2855.8,2.3056]
[1766057256017,1.8953,2856.2,2855.8,2.3056]
[1766057256293,2.36348723,2856.2,2855.8,2.3056]
[1766057258040,2.36348723,2856.2,2855.5,3.5030079]
[1766057258041,0.002,2856.4,2855.5,0.001]
[1766057258205,0.002,2856.7,2856.0,1.3178]
[1766057258403,0.002,2856.7,2855.8,13.63493799]
[1766057258404,0.002,2857.2,2856.5,1.3178]
[1766057258727,0.002,2857.2,2856.7,1.3178]
[1766057258913,0.002,2857.2,2857.0,1.3178]
[1766057259236,0.0004,2857.4,2857.2,1.3178]
[1766057259544,0.0004,2857.4,2857.1,0.9878]
[1766057259712,0.0004,2857.4,2857.1,2.3056]
[1766057260938,0.0004,2857.4,2857.3,0.9878]
[1766057261142,0.002,2857.7,2857.3,0.9878]
[1766057261438,0.002,2857.7,2857.4,1.3178]
[1766057261607,0.002,2857.7,2857.1,3.78588183]
[1766057261608,0.002,2857.7,2857.5,2.3056]
[1766057263634,0.002,2858.0,2857.7,0.9804]
[1766057263833,0.002,2858.0,2857.7,2.2434]
[1766057264339,0.002,2858.0,2857.5,0.9804]
[1766057264630,0.9957,2858.0,2857.6,2.2434]
[1766057264832,0.002,2858.0,2857.7,2.2434]
[1766057265042,0.002,2858.0,2857.7,1.263]
[1766057265431,0.9957,2858.0,2857.6,1.263]
[1766057265632,0.9957,2858.0,2857.6,2.2434]
[1766057265815,0.9957,2858.0,2857.3,1.5334]
[1766057266148,1.8286,2858.0,2857.4,1.263]
[1766057266640,4.49277274,2857.9,2857.4,2.2434]
[1766057266939,4.49277274,2857.9,2857.5,1.263]
[1766057267312,0.9937,2857.9,2857.5,1.263]
[1766057268231,0.9937,2857.9,2857.5,2.2434]
[1766057271446,4.49282181,2857.9,2857.5,2.2434]
[1766057271636,4.49282181,2857.9,2857.3,1.5334]
[1766057271836,4.49282181,2857.9,2857.4,2.2434]
[1766057272036,4.49282181,2857.9,2857.5,1.263]
[1766057272517,0.9937,2857.8,2857.4,2.2434]
[1766057275129,1.8051,2857.9,2857.5,1.263]
[1766057275329,5.30417587,2857.9,2857.5,2.2434]
[1766057275636,0.9937,2857.8,2857.5,1.263]
[1766057275814,0.9929,2857.8,2857.5,1.263]
[1766057276444,4.49213313,2857.8,2857.3,1.5334]
[1766057276628,4.49213313,2857.8,2857.4,1.263]
[1766057276828,3.49923313,2857.8,2857.3,0.553]
[1766057277043,0.7946,2857.7,2857.3,0.553]
[1766057277218,0.7946,2857.7,2857.3,1.816]
[1766057277419,4.29583313,2857.8,2857.3,2.7964]
[1766057277619,4.29583313,2857.8,2857.4,1.263]
[1766057277846,0.9937,2857.7,2857.4,1.263]
[1766057279018,0.002,2857.8,2857.5,1.263]
[1766057279214,3.50121045,2857.8,2857.5,2.2434]
[1766057279431,3.50121045,2857.8,2857.5,1.263]
[1766057279630,4.49491045,2857.8,2857.5,1.263]
[1766057281250,0.9957,2857.8,2857.5,1.263]
[1766057281635,3.50120151,2857.8,2857.5,2.2434]
[1766057281837,0.002,2857.8,2857.5,2.2434]
[1766057283768,0.002,2857.8,2857.5,0.9804]
[1766057284066,0.002,2857.8,2857.5,2.2434]
[1766057284437,0.002,2857.8,2857.5,2.2444]
[1766057284840,0.002,2857.8,2857.6,1.263]
[1766057285038,0.002,2857.8,2857.6,0.9804]
[1766057285242,0.002,2857.8,2857.7,1.263]
[1766057285742,0.002,2857.9,2857.7,0.9804]
[1766057285935,0.002,2858.0,2857.8,0.9804]
[1766057286138,0.9957,2858.3,2857.9,0.9804]
[1766057286356,0.002,2858.3,2858.1,0.9804]
[1766057286555,0.002,2858.4,2858.3,2.2434]
[1766057287265,0.002,2858.4,2858.3,1.263]
[1766057287471,0.002,2858.4,2858.2,1.263]
[1766057287671,0.002,2858.4,2858.1,2.2434]
[1766057288471,0.9957,2858.5,2858.1,2.2434]
[1766057290186,0.9957,2858.5,2857.9,0.22434]
[1766057290351,0.9937,2858.4,2857.7,0.553]
[1766057290553,3.50034014,2858.5,2857.7,0.553]
[1766057290778,3.50034014,2858.5,2858.0,1.263]
[1766057290979,1.02707741,2858.4,2857.6,2.2434]
[1766057291181,0.9937,2858.0,2857.5,0.001]
[1766057291358,1.754,2858.2,2857.5,0.001]
[1766057291568,0.7603,2858.1,2857.5,0.001]
[1766057291758,0.9937,2857.9,2857.5,1.264]
[1766057291964,0.9937,2858.1,2857.5,2.2444]
[1766057292883,4.49254483,2858.1,2857.5,2.2444]
[1766057293090,0.9937,2858.1,2857.5,2.2444]
[1766057293558,0.9937,2858.1,2857.5,2.1847]
[1766057295203,0.9937,2858.1,2857.5,0.9814]
[1766057295489,1.712,2858.1,2857.7,1.2033]
[1766057296189,0.9679,2858.1,2857.7,2.2047]
[1766057296390,1.7095,2858.1,2857.7,1.2033]
[1766057296594,0.9679,2858.0,2857.7,1.2033]
[1766057297395,0.9679,2858.0,2857.6,1.2033]
[1766057297600,0.9679,2858.0,2857.6,2.2047]
[1766057300598,0.7308,2858.0,2857.6,1.2033]
[1766057300800,0.9679,2857.9,2857.6,1.2033]
[1766057301178,0.9679,2858.0,2857.6,2.2057]
[1766057303206,0.9679,2858.0,2857.6,1.0024]
[1766057303409,0.9679,2858.0,2857.7,1.2033]
[1766057304398,4.22466469,2858.2,2857.7,1.2033]
[1766057304604,0.9679,2858.1,2857.7,2.2047]
[1766057304812,1.6868,2858.1,2857.7,2.2047]
[1766057306998,0.9679,2858.1,2857.8,1.2033]
[1766057307194,0.9679,2858.2,2857.8,2.2047]
[1766057307589,3.50064931,2858.3,2857.8,1.0014]
[1766057307899,4.46854931,2858.3,2857.9,2.2047]
[1766057308106,1.682,2858.3,2857.9,2.2047]
[1766057308276,0.9679,2858.2,2857.7,1.2033]
[1766057308604,0.9679,2858.1,2857.7,2.2047]
[1766057309989,0.7077,2858.1,2857.7,1.2033]
[1766057310217,0.9679,2858.0,2857.7,1.2033]
[1766057310596,0.9679,2858.0,2857.6,0.001]
[1766057310903,0.9679,2858.0,2857.6,2.2057]
[1766057312021,0.9679,2858.0,2857.7,1.2033]
[1766057312324,5.17194611,2858.3,2857.7,2.2047]
[1766057312483,0.9679,2858.2,2857.7,1.0014]
[1766057312808,0.9679,2858.1,2857.8,1.2033]
[1766057314109,3.50064611,2858.3,2857.8,1.2033]
[1766057314312,0.9679,2858.2,2857.9,1.2033]
[1766057314815,0.9679,2858.1,2857.8,1.2033]
[1766057314984,7.31905425,2858.2,2857.8,2.2047]
[1766057315317,8.28695425,2858.2,2857.8,2.2047]
[1766057315610,7.58985425,2858.2,2857.8,2.2047]
[1766057316389,8.28495425,2858.2,2857.8,2.2047]
[1766057316588,7.58985425,2858.2,2857.8,2.2047]
[1766057316910,7.58985425,2858.2,2857.8,1.0014]
[1766057317113,7.58985425,2858.2,2857.8,2.2047]
[1766057317817,7.59185425,2858.2,2857.8,2.2047]
[1766057318616,0.9699,2858.2,2857.8,2.2047]
[1766057319614,0.9699,2858.2,2857.9,1.2033]
[1766057320114,0.002,2858.2,2857.9,1.2033]
[1766057320316,0.002,2858.2,2857.9,2.2047]
[1766057320714,0.002,2858.2,2857.9,1.2033]
[1766057320886,0.002,2858.2,2858.0,2.2047]
[1766057321087,0.002,2858.5,2858.0,1.2033]
[1766057321413,0.9699,2858.5,2858.2,1.2033]
[1766057323194,0.002,2858.5,2858.2,1.2033]
[1766057323518,0.002,2858.5,2858.3,1.2472]
[1766057323725,0.002,2858.5,2858.3,2.182]
[1766057324222,0.002,2858.5,2858.2,2.182]
[1766057324395,4.50455723,2858.5,2858.2,2.182]
[1766057324603,4.50455723,2858.5,2858.2,1.2472]
[1766057325394,4.50375723,2858.5,2858.2,1.2472]
[1766057325745,1.0042,2858.3,2858.0,1.2472]
[1766057326022,0.6779,2858.4,2858.0,1.2472]
[1766057326318,1.6821,2858.4,2858.0,2.182]
[1766057326540,1.0042,2858.4,2858.0,2.182]
[1766057326846,1.0042,2858.4,2857.9,0.22047]
[1766057327016,1.0042,2858.4,2858.1,2.182]
[1766057328344,10.12151032,2858.5,2858.1,1.2472]
[1766057328539,10.12151032,2858.5,2858.2,2.182]
[1766057328745,11.12571032,2858.5,2858.2,1.2472]
[1766057329448,6.62315425,2858.5,2857.9,2.182]
[1766057329644,6.62315425,2858.5,2858.1,0.9348]
[1766057329829,14.62185189,2858.9,2858.2,2.182]
[1766057330024,1.0042,2858.8,2858.2,0.9348]
[1766057330218,1.0042,2858.7,2858.3,2.182]
[1766057330939,1.0042,2858.7,2858.4,1.2472]
[1766057331443,1.0042,2858.7,2858.4,2.182]
[1766057332225,4.50229683,2858.7,2858.2,0.9348]
[1766057332432,3.49809683,2858.7,2858.2,1.2472]
[1766057332628,10.12005108,2858.7,2858.1,0.553]
[1766057332944,1.6695,2858.6,2858.2,1.2472]
[1766057333121,1.0042,2858.6,2858.3,1.2472]
[1766057333322,3.49809683,2858.7,2858.3,2.182]
[1766057333518,3.49809683,2858.7,2858.3,1.2472]
[1766057333724,7.28555425,2858.4,2857.8,0.001]
[1766057333924,1.0042,2858.2,2857.9,1.2472]
[1766057334151,1.0042,2858.3,2857.9,2.182]
[1766057334324,6.62151796,2858.1,2857.6,0.001]
[1766057334649,1.0042,2858.1,2857.6,0.001]
[1766057334851,6.62151796,2858.3,2857.6,2.183]
[1766057335059,7.62571796,2858.4,2857.8,2.183]
[1766057335431,0.002,2858.2,2857.9,2.182]
[1766057335632,0.002,2858.2,2857.9,1.2472]
[1766057335947,1.0062,2858.2,2857.8,2.183]
[1766057336254,1.6646,2858.1,2857.8,0.001]
[1766057336456,1.0042,2858.0,2857.8,0.001]
[1766057336622,1.6646,2858.0,2857.6,0.9358]
[1766057336822,1.0042,2858.0,2857.6,2.183]
[1766057337927,1.6604,2858.0,2857.6,2.183]
[1766057339060,1.0042,2858.0,2857.7,2.182]
[1766057339965,1.0042,2858.1,2857.8,1.2472]
[1766057340959,1.0042,2858.1,2857.7,2.182]
[1766057341160,1.6558,2858.1,2857.7,2.182]
[1766057341370,1.0042,2858.1,2857.7,2.182]
[1766057342681,1.0042,2857.8,2857.6,0.001]
[1766057343090,1.0042,2857.9,2857.6,0.001]
[1766057343380,1.0042,2857.9,2857.6,1.2482]
[1766057344673,1.0042,2857.9,2857.6,2.183]
[1766057344873,1.0042,2858.0,2857.6,2.183]
[1766057345372,1.0042,2858.1,2857.8,1.2472]
[1766057346083,1.0042,2858.1,2857.7,0.9348]
[1766057346268,1.0042,2858.1,2857.7,2.182]
[1766057347578,11.12642589,2858.2,2857.7,0.9348]
[1766057347790,11.12642589,2858.2,2857.8,1.2472]
[1766057347989,12.34566796,2858.2,2857.8,1.2472]
[1766057348162,1.0042,2858.1,2857.8,1.2472]
[1766057348978,10.12222589,2858.2,2857.8,1.2472]
[1766057349284,10.12222589,2858.2,2857.8,0.9348]
[1766057349487,11.12642589,2858.2,2857.9,1.2472]
[1766057349693,11.70403796,2858.2,2857.7,1.2472]
[1766057349894,1.0042,2858.1,2857.7,2.182]
[1766057350186,1.0034,2858.1,2857.7,2.182]
[1766057351183,11.70403796,2858.2,2857.6,0.001]
[1766057351495,11.70403796,2858.2,2857.7,2.182]
[1766057351667,12.34143796,2858.2,2857.8,1.2482]
[1766057351875,8.84273003,2858.2,2857.8,1.2482]
[1766057352063,9.84693003,2858.2,2857.8,1.2482]
[1766057352683,13.34565417,2858.2,2857.8,1.2482]
[1766057352883,1.006,2858.1,2857.8,1.2482]
[1766057353303,7.62951796,2858.2,2857.8,0.9763]
[1766057353467,7.62951796,2858.2,2857.8,2.1543]
[1766057354092,1.008,2858.2,2857.8,0.9763]
[1766057354268,1.008,2858.2,2857.9,1.178]
[1766057354468,1.008,2858.2,2857.8,0.9763]
[1766057354668,1.008,2858.2,2857.8,2.1543]
[1766057355193,1.006,2858.1,2857.8,2.1543]
[1766057355495,1.006,2858.1,2857.8,1.179]
[1766057356795,4.50484087,2858.1,2857.8,0.001]
[1766057356968,1.006,2857.9,2857.8,0.001]
[1766057357966,1.6332,2858.0,2857.8,0.001]
[1766057358171,6.62151796,2858.1,2857.8,0.001]
[1766057358372,7.62751796,2858.1,2857.8,1.179]
[1766057358903,7.62751796,2858.1,2857.8,0.001]
[1766057359497,8.25431796,2858.1,2857.8,0.001]
[1766057359679,1.006,2858.0,2857.8,0.001]
[1766057362109,8.25431796,2858.1,2857.8,0.001]
[1766057362408,1.6328,2858.1,2857.8,0.001]
[1766057362577,1.008,2858.1,2857.8,1.179]
[1766057363110,1.008,2858.1,2857.8,2.1543]
[1766057363707,0.002,2858.1,2857.8,2.1543]
[1766057363881,0.002,2858.1,2857.8,0.9763]
[1766057364087,0.002,2858.1,2857.9,1.178]
[1766057364415,0.002,2858.1,2857.9,2.1533]
[1766057364992,0.002,2858.1,2857.9,0.9753]
[1766057365314,0.002,2858.1,2857.8,2.1543]
[1766057367714,1.008,2858.1,2857.8,2.1543]
[1766057369618,0.002,2858.1,2857.8,2.1543]
[1766057369820,1.008,2858.1,2857.8,1.179]
[1766057370020,0.002,2858.1,2857.9,1.178]
[1766057370219,0.002,2858.1,2857.8,2.1543]
[1766057370827,1.008,2858.1,2857.8,1.179]
[1766057371124,1.006,2858.0,2857.8,0.001]
[1766057374217,1.6194,2858.1,2857.8,0.001]
[1766057374417,1.006,2858.0,2857.8,0.001]
[1766057374722,0.6066,2858.0,2857.8,0.001]
[1766057375021,1.6126,2858.0,2857.8,0.001]
[1766057375212,1.006,2858.0,2857.8,0.001]
[1766057376109,0.002,2858.1,2857.9,1.178]
[1766057376316,0.002,2858.1,2858.0,2.1533]
[1766057376823,0.002,2858.1,2858.0,1.178]
[1766057377624,0.002,2858.1,2857.8,2.1543]
[1766057377825,0.6057,2858.1,2857.8,0.001]
[1766057378128,1.006,2857.9,2857.8,0.001]
[1766057378331,1.6087,2857.9,2857.6,0.001]
[1766057378493,1.006,2857.9,2857.6,0.001]
[1766057378690,0.6047,2858.1,2857.6,2.1543]
[1766057378894,1.006,2858.0,2857.6,2.1543]
[1766057379124,1.006,2858.0,2857.6,1.19183]
[1766057379333,1.6107,2858.1,2857.7,2.1533]
[1766057381235,1.008,2858.1,2857.7,2.1533]
[1766057381419,1.6079,2858.1,2857.7,2.1533]
[1766057381622,1.006,2858.0,2857.7,2.1533]
[1766057382935,1.5506,2858.1,2857.7,2.1533]
[1766057385235,0.9507,2858.1,2857.7,2.1533]
[1766057387615,0.9507,2858.1,2857.8,1.1275]
[1766057387940,0.002,2858.1,2857.8,2.0975]
[1766057388939,0.002,2858.1,2857.9,1.1275]
[1766057389123,0.002,2858.1,2857.7,2.0975]
[1766057389323,0.002,2858.1,2857.8,2.0975]
[1766057389527,0.002,2858.1,2857.7,0.20995]
[1766057389852,0.002,2858.1,2857.9,1.1275]
[1766057390728,0.002,2858.1,2857.8,1.1275]
[1766057391041,3.50020168,2858.7,2858.3,1.1275]
[1766057391240,0.46438023,2858.6,2858.4,2.0975]
[1766057391446,0.46438023,2858.6,2858.4,1.1275]
[1766057391630,3.50011752,2858.7,2858.2,0.97]
[1766057391832,0.9487,2858.5,2858.2,1.1275]
[1766057392036,0.9487,2858.6,2858.2,2.0975]
[1766057392545,1.5306,2858.6,2858.2,2.0975]
[1766057392928,0.5819,2858.6,2858.2,2.0975]
[1766057393135,1.5306,2858.6,2858.2,2.0975]
[1766057393327,0.9487,2858.5,2858.2,2.0975]
[1766057393527,0.9487,2858.5,2858.2,1.1275]
[1766057393736,4.44705678,2858.5,2858.0,0.97]
[1766057393926,0.9487,2858.4,2858.1,1.1275]
[1766057394132,4.44705678,2858.5,2858.2,1.1275]
[1766057394338,4.82833087,2858.5,2857.9,0.553]
[1766057394520,0.002,2858.1,2858.0,0.97]
[1766057394923,0.002,2858.1,2857.9,0.553]
[1766057395123,0.002,2858.1,2857.9,1.6805]
[1766057395842,0.002,2858.1,2857.9,2.6505]
[1766057399049,0.002,2858.1,2857.9,0.553]
[1766057399347,0.9507,2858.1,2857.9,0.553]
[1766057399533,0.9499,2858.1,2857.9,0.553]
[1766057400043,0.9499,2858.1,2857.8,0.001]
[1766057400255,0.9487,2857.9,2857.8,0.001]
[1766057400548,0.9487,2857.9,2857.6,0.001]
[1766057400753,0.9487,2857.8,2857.6,0.001]
[1766057401118,0.0012,2858.1,2857.8,0.97]
[1766057401347,0.0012,2858.1,2857.9,0.001]
[1766057401533,0.9499,2858.1,2857.9,0.001]
[1766057401742,1.5116,2858.1,2857.9,0.001]
[1766057402350,4.06173347,2858.1,2857.9,0.001]
[1766057402553,0.9487,2857.9,2857.6,0.001]
[1766057402956,0.9487,2857.8,2857.5,0.001]
[1766057403156,0.9487,2857.7,2857.5,0.001]
[1766057403459,4.2562672,2858.1,2857.5,0.001]
[1766057403622,0.9487,2857.8,2857.5,0.001]
[1766057403822,0.9487,2857.8,2857.5,1.1285]
[1766057404642,0.9487,2857.9,2857.5,2.0985]
[1766057404849,0.9487,2857.9,2857.5,0.971]
[1766057405044,1.70613373,2858.1,2857.5,0.001]
[1766057405390,1.70613373,2858.1,2857.6,2.0975]
[1766057405391,0.9487,2858.0,2857.6,2.0975]
[1766057405560,0.0012,2858.1,2857.6,2.0975]
[1766057406360,0.0012,2858.1,2857.5,0.001]
[1766057406549,0.0012,2858.1,2857.6,2.0975]
[1766057406859,0.0012,2858.1,2857.5,0.001]
[1766057407154,3.5001586,2858.7,2857.6,3.90470173]
[1766057407540,3.5001586,2858.7,2857.7,2.0975]
[1766057407852,3.5001586,2858.7,2857.9,2.0975]
[1766057408025,3.5001586,2858.7,2857.8,0.553]
[1766057408225,3.5001586,2858.7,2857.9,2.0975]
[1766057408428,3.5001586,2858.7,2858.0,0.26505]
[1766057408629,3.5001586,2858.7,2857.8,0.553]
[1766057409059,3.5001586,2858.7,2857.9,2.0975]
[1766057409060,2.0584,2858.6,2857.9,2.0975]
[1766057409252,1.1097,2858.5,2857.9,2.0975]
[1766057409447,1.1097,2858.3,2857.8,0.553]
[1766057409646,2.0604,2858.2,2857.8,0.553]
[1766057409840,2.0604,2858.2,2857.8,2.6505]
[1766057410243,0.002,2858.2,2857.8,2.95607617]
[1766057410529,2.0604,2858.2,2857.8,2.6505]
[1766057410730,2.0604,2858.2,2857.8,0.553]
[1766057411041,0.002,2858.2,2857.5,0.554]
[1766057411241,2.0584,2858.0,2857.5,2.6515]
[1766057411565,2.0584,2858.0,2857.6,2.0975]
[1766057412267,2.058,2858.2,2857.6,2.0975]
[1766057412466,0.002,2858.2,2857.6,0.9477]
[1766057412642,0.002,2858.2,2857.8,0.9477]
[1766057412844,2.0882,2858.2,2857.5,0.554]
[1766057413048,2.0882,2858.2,2857.6,2.1183]
[1766057413430,2.0882,2858.2,2857.5,0.554]
[1766057413745,0.002,2858.2,2857.5,0.554]
[1766057414075,0.002,2858.2,2857.6,2.1183]
[1766057414434,1.1122,2858.2,2857.8,1.1706]
[1766057414660,2.0882,2858.2,2857.8,2.1183]
[1766057415368,2.0882,2858.2,2857.5,0.554]
[1766057415545,2.0882,2858.2,2857.6,2.1183]
[1766057415936,2.0882,2858.2,2857.7,2.1183]
[1766057416364,2.0882,2858.2,2857.5,0.554]
[1766057416659,0.002,2858.2,2857.6,0.40536714]
[1766057416868,0.002,2858.2,2857.7,2.1183]
[1766057417576,0.002,2858.2,2857.6,0.40536714]
[1766057417875,0.002,2858.2,2857.8,1.1706]
[1766057418053,2.0882,2858.2,2857.8,1.1706]
[1766057418247,0.002,2858.2,2857.7,1.1706]
[1766057418450,2.0882,2858.2,2857.8,2.1183]
[1766057419369,0.002,2858.2,2857.8,2.1183]
[1766057419564,0.002,2858.2,2857.5,0.554]
[1766057419766,0.002,2858.2,2857.7,1.1706]
[1766057420065,2.0862,2858.6,2857.7,2.1183]
[1766057420267,5.5844707,2858.6,2857.6,3.90471933]
[1766057420636,5.5844707,2858.6,2857.7,2.1183]
[1766057420863,9.0827414,2858.6,2857.8,0.60230193]
[1766057421068,9.0827414,2858.6,2857.6,0.40536722]
[1766057421069,2.0862,2858.5,2857.9,2.1183]
[1766057421239,2.0862,2858.5,2857.6,0.40536722]
[1766057421240,3.4982707,2858.6,2857.6,3.90480182]
[1766057421442,3.4982707,2858.6,2857.7,2.1183]
[1766057421969,3.4982707,2858.6,2857.6,3.90480182]
[1766057422170,5.5844707,2858.6,2857.7,0.44588018]
[1766057422375,5.5844707,2858.6,2857.8,2.1183]
[1766057422574,9.0827414,2858.6,2857.7,0.44588018]
[1766057422774,9.0847414,2858.6,2857.8,2.1183]
[1766057423071,0.002,2858.7,2857.9,7.20932999]
[1766057423245,0.002,2859.0,2858.0,1.42076966]
[1766057423444,3.49973024,2859.0,2858.5,1.1706]
[1766057423672,0.002,2859.0,2858.0,1.42076966]
[1766057423848,0.002,2859.0,2858.1,2.1183]
[1766057424261,0.0012,2859.0,2858.1,2.1183]
[1766057424481,0.0012,2859.0,2858.2,0.35390697]
[1766057424652,0.0012,2859.0,2858.4,2.1183]
[1766057424853,0.0012,2859.0,2858.3,0.553]
[1766057425055,0.0012,2859.0,2858.5,1.1706]
[1766057425256,0.0012,2859.0,2858.7,2.1183]
[1766057425452,0.0012,2859.0,2858.5,0.9477]
[1766057425673,0.0012,2859.0,2858.3,0.553]
[1766057425874,0.0012,2859.0,2858.7,0.9477]
[1766057426074,0.0012,2859.0,2858.7,2.1183]
[1766057426676,0.002,2859.2,2858.5,1.1706]
[1766057426885,0.002,2859.3,2858.6,3.49816301]
[1766057427084,0.002,2859.3,2858.7,0.3498163]
[1766057427263,1.1102,2859.2,2858.5,1.7236]
[1766057427581,1.1102,2859.2,2858.6,2.1183]
[1766057427781,5.5855634,2859.3,2858.6,2.1183]
[1766057428373,4.4753634,2859.3,2858.6,2.1183]
[1766057428560,2.0862,2859.2,2858.6,2.1183]
[1766057428760,2.0862,2859.2,2858.6,1.45174245]
[1766057428960,2.0862,2859.2,2858.7,2.1183]
[1766057430461,3.4993634,2859.3,2858.7,2.1183]
[1766057430802,0.002,2859.3,2858.7,2.1183]
[1766057431571,0.002,2859.3,2858.6,0.28114245]
[1766057431795,0.002,2859.3,2858.8,2.1183]
[1766057432512,2.0882,2859.3,2858.7,2.55154339]
[1766057432662,2.0882,2859.3,2858.6,0.28114245]
[1766057432858,5.58557285,2859.3,2858.7,2.1183]
[1766057433365,0.002,2859.3,2858.6,0.83414245]
[1766057433687,0.002,2859.3,2858.7,2.1183]
[1766057433888,0.002,2859.3,2858.6,0.83414245]
[1766057434198,0.002,2859.3,2858.7,2.1183]
[1766057434406,3.49937061,2859.3,2858.6,0.83414245]
[1766057434562,3.49937061,2859.3,2858.7,2.1183]
[1766057434762,0.002,2859.3,2858.6,0.83414245]
[1766057435087,0.002,2859.3,2858.7,2.1183]
[1766057435443,0.002,2859.3,2858.6,0.83414245]
[1766057435586,0.002,2859.3,2858.7,2.1183]
[1766057435893,0.002,2859.3,2858.6,0.83414245]
[1766057436394,0.002,2859.3,2858.7,2.1183]
[1766057436583,0.002,2859.3,2858.8,2.1183]
[1766057436772,0.002,2859.3,2858.7,0.64507784]
[1766057436969,0.002,2859.3,2858.8,2.1183]
[1766057437195,0.002,2859.3,2858.7,0.64507784]
[1766057437989,0.002,2859.3,2858.8,2.1183]
[1766057438190,5.93592126,2859.3,2858.6,2.6713]
[1766057438490,5.5855965,2859.3,2858.6,2.6713]
[1766057438695,4.4753965,2859.3,2858.6,2.6713]
[1766057438893,1.1102,2859.2,2858.7,2.1183]
[1766057439067,0.978,2859.3,2858.7,2.1183]
[1766057439290,0.002,2859.3,2858.6,0.553]
[1766057439493,0.002,2859.4,2859.3,2.1183]
[1766057439832,0.002,2859.7,2859.3,2.1183]
[1766057440133,0.002,2859.7,2859.1,2.1183]
[1766057440506,0.002,2859.7,2859.0,7.30810357]
[1766057440688,0.002,2859.7,2859.0,0.6930906]
[1766057440893,2.0882,2859.7,2859.1,2.1183]
[1766057441498,2.0882,2859.7,2859.0,0.553]
[1766057442038,2.0882,2859.7,2859.1,2.1183]
[1766057442193,5.58507516,2859.7,2859.0,0.553]
[1766057442628,5.58507516,2859.7,2859.2,0.9076]
[1766057442824,5.58507516,2859.7,2859.3,2.0623]
[1766057443420,4.60907516,2859.7,2859.3,2.0623]
[1766057443728,5.55857516,2859.7,2859.1,2.0623]
[1766057443931,5.55857516,2859.7,2859.2,0.9076]
[1766057444097,5.55857516,2859.7,2859.2,2.0623]
[1766057444500,5.55857516,2859.7,2859.1,2.0623]
[1766057444698,5.55857516,2859.7,2859.3,0.9076]
[1766057444895,0.002,2859.7,2859.1,0.26153]
[1766057445095,0.002,2859.7,2859.2,2.0623]
[1766057445408,5.53417806,2859.7,2859.2,1.1547]
[1766057445604,3.49887806,2859.7,2859.3,2.0623]
[1766057446032,3.49887806,2859.7,2859.0,0.553]
[1766057446227,3.49887806,2859.7,2859.1,1.1547]
[1766057446530,3.49887806,2859.7,2859.3,2.0623]
[1766057447429,0.002,2859.8,2859.5,1.1547]
[1766057447731,0.002,2859.8,2859.6,2.0623]
[1766057449432,0.0012,2859.8,2859.5,0.9076]
[1766057449632,0.0012,2859.8,2859.5,2.0623]
[1766057450029,0.002,2859.7,2859.5,2.0623]
[1766057450335,0.0012,2859.8,2859.5,2.0623]
[1766057450336,0.002,2860.4,2859.6,1.1547]
[1766057450496,1.6378,2860.3,2859.5,0.20623]
[1766057450807,2.5873,2860.3,2859.6,2.0623]
[1766057451007,2.5873,2860.3,2859.7,0.9076]
[1766057451212,2.99364242,2860.3,2859.5,0.20623]
[1766057451529,7.54712422,2860.4,2859.8,1.1547]
[1766057451826,8.07992422,2860.4,2859.8,2.0623]
[1766057452028,0.002,2860.4,2859.6,6.61501297]
[1766057452205,0.002,2860.4,2859.8,6.61501297]
[1766057452415,0.002,2860.4,2859.8,0.9076]
[1766057452607,0.002,2860.4,2860.1,1.1547]
[1766057452796,0.002,2860.4,2860.1,0.9076]
[1766057453001,0.002,2860.4,2860.1,2.0623]
[1766057453621,3.49538242,2861.0,2860.2,1.1547]